Workbook

Sheet 2007-08
A1: Column1 | B1: Early Edu - Govindpuri | C1: early edu - prep | D1: manav kalyan* | E1: Special Section | F1: Primary - Govindpuri | G1: Pri - Lohar Basti | H1: Pri - Okhla | I1: Pri - Sanjay Col | J1: Sr Sec | K1: Jr Sec | L1: Cyber Club | M1: Comm Outreach | N1: W&C Center - Creche | O1: W&C Center - Pri | P1: W&C : Residence | Q1: Totals
A2: Children | B2: 29 | C2: 32 | D2: 22 | E2: 26 | F2: 65 | G2: 67 | H2: 118 | I2: 65 | J2: 64 | K2: 64 | L2: 37 | N2: 30 | O2: 60 | Q2: =SUM(B2:O2) -> 679
A3: boys | B3: 17 | C3: 16 | D3: 10 | E3: 10 | F3: 30 | G3: 22 | H3: 58 | I3: 35 | J3: 39 | K3: 38 | L3: 26 | N3: 15 | O3: 30 | Q3: =SUM(B3:O3) -> 346
A4: girls | B4: 12 | C4: 16 | D4: 12 | E4: 16 | F4: 35 | G4: 45 | H4: 60 | I4: 30 | J4: 25 | K4: 26 | L4: 11 | N4: 15 | O4: 30 | Q4: =SUM(B4:O4) -> 333
A5: teachers | B5: 2 | C5: 2 | D5: 2 | E5: 4 | F5: 2 | G5: 1 | H5: 3 | I5: 2 | J5: 2 | K5: 2 | L5: 2 | M5: 3 | N5: 3 | O5: 3 | Q5: =SUM(B5:O5) -> 33
A6: salaries | B6: 4400 | C6: 4600 | D6: 2800 | E6: 9400 | F6: 5700 | G6: 2500 | H6: 8800 | I6: 5500 | J6: 8000 | K6: 6000 | L6: 5000 | M6: 10600 | N6: 6500 | O6: 8500
A7: rent | C7: 2300 | D7: 1500 | F7: 1000 | I7: 3000 | J7: 2500 | K7: 2300 | L7: 3000 | M7: 2500 | N7: 2750 | O7: 2750 | P7: 4000
A8: transport | B8: 2000 | C8: 2000 | E8: 6000 | M8: 2000
A9: learning aids | B9: 1000 | C9: 1000 | D9: 500 | E9: 1000 | F9: 1000 | G9: 1000 | H9: 1000 | I9: 1000 | J9: 1000 | K9: 1000 | L9: 1000 | N9: 1500 | O9: 1500
A10: Other (occ therapist, lab ) | E10: 5000 | L10: 2500 | M10: 3500 | N10: 1000 | O10: 4000 | P10: 8000
A11: 1/12 admin | B11: 3475 | C11: 3475 | D11: 3475 | E11: 3475 | F11: 3475 | G11: 3475 | H11: 3475 | I11: 3475 | J11: 3475 | K11: 3475 | L11: 3475 | M11: 3475
A12: Total | B12: =SUM(B6:B11) -> 10875 | C12: =SUM(C6:C11) -> 13375 | D12: =SUM(D6:D11) -> 8275 | E12: =SUM(E6:E11) -> 24875 | F12: =SUM(F6:F11) -> 11175 | G12: =SUM(G6:G11) -> 6975 | H12: 13275 | I12: 12975 | J12: =SUM(J6:J11) -> 14975 | K12: =SUM(K6:K11) -> 12775 | L12: =SUM(L6:L11) -> 14975 | M12: 22075 | N12: 11750 | O12: 16750 | P12: 12000 | Q12: =SUM(B12:P12) -> 207100
M13: USD / mo | Q13: =Q12/E15 -> 5210.062893
M14: USD / yr | Q14: =Q13*12 -> 62520.75472
A15: Exch Rate | B15: USD-Euro | C15: 1.4 | D15: INR | E15: 39.75
A16: Other finances | B16: USD | I16: Admin | O16: W&C one-time (paid) :
B17: =C15*1000*12 -> 16800 | C17: 1000 Euros / mo - Enfannes Indiennes | J17: Salary (6 staff) | L17: 18200 | O17: aquaguard | Q17: 7000
B18: =500*C15+4000*12/E15 -> 1907.54717 | C18: MediPlus 500 euro, Chemical India @ Rs 4K/mo, | J18: staff expenses | L18: 10500 | O18: cooler&fans | Q18: 5000
B19: 6000 | C19: Omprakash Foundation | J19: transport | L19: 6000 | O19: furniture | Q19: 18000
B20: =20000/E15*12 -> 6037.735849 | C20: Other : women center @ Rs 20K/mo, paypal, etc | J20: medical fund | L20: 2000 | O20: invertor | Q20: 13000
B21: =300000/39.75 -> 7547.169811 | C21: NDTV : INR 3 Lakhs | J21: electricity | L21: 3000 | O21: sewing machine | Q21: 2000
B22: =SUM(B17:B21) -> 38292.45283 | J22: misc | L22: 2000 | O22: Total | Q22: =SUM(Q17:Q21) -> 45000
J23: total | L23: =SUM(L17:L22) -> 41700
A24: Ask from ASHA Seattle for Nov07-Oct08
B25: =Q14-B22 -> 24228.30189 | C25: USD
B26: =B25*E15 -> 963075 | C26: INR

Sheet 2008-09
A1: Column1 | B1: Early Edu - Govindpuri | C1: early edu - prep | D1: Early Edu - Govindpuri - 2 | E1: Special Section | F1: Primary - Govindpuri | G1: Pri - Okhla | H1: Pri - Sanjay Col | I1: Sr Sec | J1: Jr Sec | K1: Cyber Club | L1: Comm Outreach | M1: W&C Center - Creche, Pri, Residence | N1: W&C : Residence | O1: Foster Care | P1: Totals
A2: Children | B2: 35 | C2: 35 | D2: 25 | E2: 23 | F2: 65 | G2: 125 | H2: 80 | I2: 80 | J2: 65 | K2: 75 | M2: 206 | N2: 50 | O2: 7 | P2: =SUM(B2:O2)-N2 -> 821
A3: teachers | B3: 3 | C3: 2 | D3: 2 | E3: 4 | F3: 2 | G3: 3 | H3: 3 | I3: 2 | J3: 2 | K3: 3 | L3: 3 | M3: 8 | P3: =SUM(B3:N3) -> 37
A4: salaries | B4: 5000 | C4: 6000 | D4: 5600 | E4: 9500 | F4: 7100 | G4: 9600 | H4: 9900 | I4: 9000 | J4: 7500 | K4: 11000 | L4: 10600 | M4: 42700 | O4: 10100
A5: rent | B5: 0 | C5: 2500 | D5: 3200 | E5: 0 | F5: 1000 | H5: 3400 | I5: 2500 | J5: 2500 | K5: 3000 | L5: 0 | M5: 9600 | O5: 16000
A6: transport/Electricity | B6: 4000 | C6: 4000 | D6: 3000 | E6: 6000 | L6: 2000 | N6: 2000 | O6: 6000 | P6: fees
A7: learning aids | B7: 1000 | C7: 1000 | D7: 1000 | E7: 1000 | F7: 1000 | G7: 1000 | H7: 1000 | I7: 1000 | J7: 1000 | K7: 1000 | L7: 3000 | M7: 2000 | O7: 5000 | P7: other
A8: Other (occ therapist, lab ) | E8: 5000 | K8: 2500 | L8: 500 | N8: 13000 | O8: 15000 | P8: food/ toiletries/ living exp
A9: 1/13 admin | B9: =K21/13 -> 3900 | C9: =K21/13 -> 3900 | D9: =K21/13 -> 3900 | E9: =K21/13 -> 3900 | F9: =K21/13 -> 3900 | G9: =K21/13 -> 3900 | H9: =K21/13 -> 3900 | I9: =K21/13 -> 3900 | J9: =K21/13 -> 3900 | K9: =K21/13 -> 3900 | L9: =K21/13 -> 3900 | M9: =K21/13 -> 3900 | N9: =K21/13 -> 3900
A10: Total | B10: =SUM(B4:B9) -> 13900 | C10: =SUM(C4:C9) -> 17400 | D10: =SUM(D4:D9) -> 16700 | E10: =SUM(E4:E9) -> 25400 | F10: =SUM(F4:F9) -> 13000 | G10: =SUM(G4:G9) -> 14500 | H10: =SUM(H4:H9) -> 18200 | I10: 16400 | J10: 14900 | K10: 21400 | L10: 20000 | M10: 58200 | N10: =SUM(N4:N9) -> 18900 | O10: 52100 | P10: =SUM(B10:O10) -> 321000
L11: USD / mo | P11: =P10/E13 -> 7070.484581
L12: USD / yr | P12: =P11*12 -> 84845.81498
A13: Exch Rate | D13: INR | E13: 45.4
A14: Other finances | B14: USD | H14: Admin
B15: =120000*12/E13 -> 31718.06167 | C15: Rs 120000 / mo - Enfannes Indiennes | I15: Salary (6 staff) | K15: 18200
B16: =4000*12/E13 -> 1057.268722 | C16: Chemical India @ Rs 4K/mo, | I16: staff expenses | K16: 10500
B17: =30000*12/E13 -> 7929.515419 | C17: Tour Vital Germany @ Rs 30K / mo | I17: transport | K17: 10000
B18: =20000/E13*12 -> 5286.343612 | C18: Other : women center @ Rs 10K/mo, paypal, etc | I18: communication | K18: 5000
B19: =300000/39.75 -> 7547.169811 | C19: NDTV : INR 3 Lakhs - last yr, mandatory break next yr | I19: electricity | K19: 5000
B20: =SUM(B15:B19) -> 53538.35924 | I20: misc | K20: 2000
I21: total | K21: =SUM(K15:K20) -> 50700
A22: Ask from ASHA Seattle for Nov08-Oct09
B23: =P12-B20 -> 31307.45574 | C23: USD
B24: =B23*E13 -> 1421358.491 | C24: INR

Sheet 2009-10
A1: Column1 | B1: Early Edu - Govindpuri | C1: early edu - prep | D1: Early Edu - Govindpuri - 2 | E1: Special Section | F1: Primary - Govindpuri | G1: Pri - Okhla | H1: Pri - Sanjay Col | I1: Library | J1: Sr Sec | K1: Jr Sec | L1: Cyber Club | M1: Comm Outreach | N1: W&C Center - Creche, Pri, Residence | O1: W&C : Residence | P1: Foster Care | Q1: Totals
A2: Children | B2: 40 | C2: 30 | D2: 30 | E2: 23 | F2: 70 | G2: 150 | H2: 80 | I2: 30 | J2: 80 | K2: 70 | L2: 0 | N2: 206 | O2: 50 | P2: 3 | Q2: =SUM(B2:P2)-O2 -> 812
A3: teachers | B3: 2 | C3: 2 | D3: 2 | E3: 3 | F3: 2 | G3: 4 | H3: 2 | I3: 1 | J3: 2 | K3: 1 | L3: 2 | M3: 3 | N3: 8 | P3: 2 | Q3: =SUM(B3:P3) -> 36
A4: salaries | B4: 7500 | C4: 3600 | D4: 6200 | E4: 14100 | F4: 7000 | G4: 15000 | H4: 7000 | I4: 4500 | J4: 7000 | K4: 5000 | L4: 8000 | M4: 10600 | N4: 28000 | P4: 7000
A5: rent | B5: 0 | C5: 2300 | D5: 2300 | E5: 0 | F5: 1000 | H5: 1500 | I5: 0 | J5: 2500 | K5: 3000 | L5: 3000 | M5: 0 | N5: 4000 | P5: 7000
A6: transport/Electricity | B6: 6000 | C6: 4000 | D6: 4000 | E6: 7000 | F6: 500 | G6: 500 | J6: 500 | M6: 2500 | N6: 11000 | O6: 2000 | Q6: fees
A7: learning aids | B7: 1000 | C7: 1000 | D7: 1000 | E7: 1000 | F7: 1000 | G7: 1000 | H7: 1000 | I7: 500 | J7: 1000 | K7: 1000 | L7: 1000 | M7: 0 | N7: 0 | P7: 5000 | Q7: other
A8: Other (occ therapist, lab ) | E8: 7500 | J8: 2500 | L8: 2500 | M8: 3000 | N8: 20000 | O8: 15000 | P8: 10000 | Q8: food/ toiletries/ living exp
A9: 1/13 admin | B9: =L21/13 -> 4153.846154 | C9: =L21/13 -> 4153.846154 | D9: =L21/13 -> 4153.846154 | E9: =L21/13 -> 4153.846154 | F9: =L21/13 -> 4153.846154 | G9: =L21/13 -> 4153.846154 | H9: =L21/13 -> 4153.846154 | I9: 0 | J9: =L21/13 -> 4153.846154 | K9: =L21/13 -> 4153.846154 | L9: =L21/13 -> 4153.846154 | M9: =L21/13 -> 4153.846154 | N9: =L21/13 -> 4153.846154 | O9: =L21/13 -> 4153.846154
A10: Total | B10: =SUM(B4:B9) -> 18653.84615 | C10: =SUM(C4:C9) -> 15053.84615 | D10: =SUM(D4:D9) -> 17653.84615 | E10: =SUM(E4:E9) -> 33753.84615 | F10: =SUM(F4:F9) -> 13653.84615 | G10: =SUM(G4:G9) -> 20653.84615 | H10: 13653.84615 | I10: =SUM(I4:I9) -> 5000 | J10: 17653.84615 | K10: 13153.84615 | L10: 18653.84615 | M10: 20253.84615 | N10: 67153.84615 | O10: 21153.84615 | P10: 29000 | Q10: =SUM(B10:P10) -> 325100
M11: USD / mo | Q11: =Q10/E13 -> 7160.792952
M12: USD / yr | Q12: =Q11*12 -> 85929.51542
A13: Exch Rate | D13: INR | E13: 45.4 | F13: EUR | G13: 1.4 | H13: CAD | I13: 0.96
A14: Other finances | B14: USD | H14: Admin
B15: 0 | C15: Rs 120000 / mo - Enfannes Indiennes - stopped June09 | J15: Salary (6 staff) | L15: 21500
B16: =6000*1.4 -> 8400 | C16: 6000 Euro/yr, Pwhy Dutch | J16: staff expenses | L16: 10500
B17: =6000*1.4 -> 8400 | C17: 6000 Euros/yr, TM Belguim | J17: transport | L17: 10000
B18: =23400/E13*12 -> 6185.022026 | C18: Other: Rs 23400/mo from HVS, CCC | J18: communication | L18: 5000
B19: =7500*0.96 -> 7200 | C19: Asha Canada, CAD 7500 | J19: electricity | L19: 5000
B20: =SUM(B15:B19) -> 30185.02203 | J20: misc | L20: 2000
J21: total | L21: =SUM(L15:L20) -> 54000
A22: Ask from ASHA Seattle for Oct09-Sep10
B23: =Q12-B20 -> 55744.49339 | C23: USD | J23: 2009 deficit | K23: 700000 | L23: INR
B24: =B23*E13 -> 2530800 | C24: INR | D24: Asha approved funding (Nov 07): | H24: 1116075 | I24: INR | J24: Shortfall: | K24: =B24-H24 -> 1414725 | L24: INR | M24: Net deficit | N24: =K24+K23 -> 2114725 | O24: INR

Sheet 2010-11
A1: Column1 | B1: Early Edu - Govindpuri | C1: early edu - prep | D1: Printing shop | E1: Special Section | F1: Primary - Govindpuri | G1: Pri - Okhla | H1: Pri - Sanjay Col | I1: Library | J1: Sr Sec | K1: Jr Sec | L1: Cyber Club - 2 loc now | M1: Focus on Quality | N1: W&C Center - Creche, Pri, Residence | O1: Foster Care | P1: Totals
A2: Children | B2: 45 | C2: 40 | D2: 0 | E2: 20 | F2: 60 | G2: 150 | H2: 0 | I2: 20 | J2: 100 | K2: 40 | L2: 10 | M2: 100 | N2: 281 | O2: 2 | P2: =SUM(B2:O2)-I2-L2-M2 -> 738
A3: teachers | B3: 2 | C3: 2 | D3: 2 | E3: 3 | F3: 2 | G3: 5 | H3: 0 | I3: 1 | J3: 1 | K3: 2 | L3: 3 | M3: 1 | N3: 14 | O3: 1 | P3: =SUM(B3:O3) -> 39
A4: salaries | B4: 7370 | C4: 8140 | D4: 7040 | E4: 14100 | F4: 7040 | G4: 18900 | H4: 0 | I4: 4500 | J4: 7000 | K4: 10500 | L4: 16300 | M4: 8000 | N4: 55000 | O4: 5000
A5: rent | B5: 0 | C5: 3750 | D5: 3400 | E5: 0 | F5: 3750 | H5: 0 | I5: 0 | J5: 2500 | K5: 0 | L5: 3000 | M5: 0 | N5: 11000 | O5: 0
A6: transport/Electricity | B6: 8000 | C6: 8000 | D6: 800 | E6: 7000 | F6: 700 | G6: 500 | H6: 0 | J6: 500 | L6: 3000 | M6: 0 | N6: 15000 | O6: 2000 | P6: fees
A7: learning aids | B7: 1000 | C7: 1000 | D7: 0 | E7: 1000 | F7: 500 | G7: 1000 | H7: 0 | I7: 500 | J7: 1000 | K7: 1000 | L7: 0 | M7: 0 | N7: 0 | O7: 2000 | P7: other
A8: Other (occ therapist, lab ) | D8: 1000 | E8: 7500 | H8: 0 | J8: 3000 | M8: 2500 | N8: 19100 | O8: 10000 | P8: food/ toiletries/ living exp
A9: 1/10 admin | B9: =L21/10 -> 5990 | C9: =L21/10 -> 5990 | D9: 0 | E9: =L21/10 -> 5990 | F9: =L21/10 -> 5990 | G9: =L21/10 -> 5990 | H9: 0 | I9: 0 | J9: =L21/10 -> 5990 | K9: =L21/10 -> 5990 | L9: =L21/10 -> 5990 | M9: =L21/10 -> 5990 | N9: =L21/10 -> 5990
A10: Total | B10: =SUM(B4:B9) -> 22360 | C10: =SUM(C4:C9) -> 26880 | D10: =SUM(D4:D9) -> 12240 | E10: =SUM(E4:E9) -> 35590 | F10: =SUM(F4:F9) -> 17980 | G10: =SUM(G4:G9) -> 26390 | H10: 0 | I10: 5000 | J10: 19990 | K10: 17490 | L10: 28290 | M10: 16490 | N10: 106090 | O10: 19000 | P10: =SUM(B10:O10) -> 353790
M11: USD / mo | P11: =P10/E13 -> 7973.630832
M12: USD / yr | P12: =P11*12 -> 95683.56998
A13: Exch Rate | D13: INR | E13: 44.37 | F13: EUR | G13: 1.43 | H13: CAD | I13: 0.96
A14: Other finances | B14: USD | H14: Admin
B15: =24000*1.43 -> 34320 | C15: 24000 Euros - Enfannes Indiennes | J15: Salary (6 staff) | L15: 19900
B16: =12000*1.43 -> 17160 | C16: 12000 Euro/yr, Pwhy Dutch | J16: all 30 staff expenses | L16: 15000
B17: 6000 | C17: misc donations | J17: transport | L17: 14000
B18: 0 | C18: Other: last yr onetime donations stopped | J18: communication | L18: 4000
B19: =84000/44.2 -> 1900.452489 | C19: Asha Canada, INR 84000 | J19: electricity | L19: 5000
B20: =SUM(B15:B19) -> 59380.45249 | J20: misc | L20: 2000
J21: total | L21: =SUM(L15:L20) -> 59900
A22: Ask from ASHA Seattle for Oct09-Sep10
B23: =P12-B20 -> 36303.11749 | C23: USD | D23: =B23*E13 -> 1610769.323 | E23: INR
A24: Asha approved funding (Nov 07, then USD 28077, INR 1116075):
B25: =D25/E13 -> 25153.82015 | C25: USD | D25: 1116075 | E25: INR
A26: Shortfall:
B27: =D27/E13 -> 11149.29734 | C27: USD | D27: =D23-D25 -> 494694.3231 | E27: INR
